fUST/lending_fUST_20241231
["ID","MTS","AMOUNT","RATE_DAILY","PERIOD"]
[347284064,1735656642991,-500.0,0.00019726,3]
[347284065,1735656643000,-500.0,0.00019726,3]
[347284066,1735656643010,-500.0,0.00019726,3]
[347284067,1735656643019,-568.03,0.00019726,3]
[347284068,1735656643030,-500.0,0.00019726,3]
[347284069,1735656643039,-500.0,0.00019726,3]
[347284070,1735656643049,-500.0,0.00019726,3]
[347284071,1735656643058,-500.0,0.00019726,3]
[347284072,1735656643067,-500.0,0.00019726,3]
[347284073,1735656643076,-500.0,0.00019726,3]
[347284074,1735656643085,-500.0,0.00019726,3]
[347284075,1735656643095,-702.26,0.00019726,3]
[347284076,1735656643103,-500.0,0.00019726,3]
[347284078,1735656643113,-500.0,0.00019726,3]
[347284080,1735656643121,-500.0,0.00019726,3]
[347284081,1735656643131,-501.47448581,0.00019726,3]
[347284082,1735656643139,-500.0,0.00019726,3]
[347284083,1735656643148,-500.0,0.00019726,3]
[347284084,1735656643157,-500.0,0.00019726,3]
[347284085,1735656643165,-500.0,0.00019726,3]
[347284086,1735656643174,-500.0,0.00019726,2]
[347284087,1735656643185,-500.0,0.00019726,3]
[347284088,1735656643194,-500.0,0.00019726,3]
[347284089,1735656643204,-500.0,0.00019726,3]
[347284090,1735656643212,-500.0,0.00019726,3]
[347284091,1735656643221,-693.55,0.00019726,3]
[347284092,1735656643231,-521.92,0.00019726,3]
[347284093,1735656643240,-500.0,0.00019726,3]
[347284094,1735656643249,-500.0,0.00019726,3]
[347284095,1735656643259,-500.0,0.00019726,3]
[347284096,1735656643268,-500.0,0.00019726,3]
[347284097,1735656643277,-500.0,0.00019726,3]
[347284098,1735656643287,-500.0,0.00019726,3]
[347284099,1735656643296,-500.0,0.00019726,3]
[347284100,1735656643306,-500.0,0.00019726,3]
[347284101,1735656643316,-500.0,0.00019726,3]
[347284102,1735656643326,-500.0,0.00019726,3]
[347284103,1735656643336,-500.0,0.00019726,3]
[347284104,1735656643346,-500.0,0.00019726,3]
[347284105,1735656643358,-500.0,0.00019726,3]
[347284106,1735656643367,-500.0,0.00019726,3]
[347284107,1735656643376,-500.0,0.00019726,3]
[347284108,1735656643385,-718.07,0.00019726,3]
[347284109,1735656643394,-500.0,0.00019726,3]
[347284110,1735656643402,-500.0,0.00019726,3]
[347284111,1735656643411,-500.0,0.00019726,3]
[347284112,1735656643420,-500.0,0.00019726,3]
[347284113,1735656643430,-593.65,0.00019726,3]
[347284114,1735656643443,-500.0,0.00019726,3]
[347284115,1735656643452,-500.0,0.00019726,3]
[347284116,1735656643620,-503.06677639,0.00019726,3]
[347284117,1735656643631,-580.67,0.00019726,3]
[347284118,1735656643641,-500.0,0.00019726,3]
[347284119,1735656643650,-500.0,0.00019726,3]
[347284120,1735656643660,-500.0,0.00019726,3]
[347284121,1735656643670,-2809.83,0.00019726,3]
[347284122,1735656643679,-978.88,0.00019726,3]
[347284123,1735656643691,-500.0,0.00019726,3]
[347284124,1735656643700,-500.0,0.00019726,2]
[347284125,1735656643710,-500.0,0.00019726,3]
[347284126,1735656643719,-500.0,0.00019726,3]
[347284127,1735656643728,-500.0,0.00019726,3]
[347284128,1735656643737,-500.0,0.00019726,3]
[347284129,1735656643747,-500.0,0.00019726,3]
[347284130,1735656643756,-500.0,0.00019726,3]
[347284131,1735656643766,-607.42808939,0.00019726,3]
[347284132,1735656643775,-1083.07,0.00019726,3]
[347284133,1735656643785,-500.0,0.00019726,3]
[347284134,1735656643794,-503.54287961,0.00019726,3]
[347284135,1735656643803,-814.01,0.00019726,3]
[347284136,1735656643813,-962.0,0.00019726,3]
[347284137,1735656643823,-479.20874602,0.00019726,3]
[347284138,1735656643832,-6935.47,0.00019726,3]
[347284139,1735656643842,-500.0,0.00019726,3]
[347284140,1735656643852,-500.0,0.00019726,3]
[347284141,1735656643862,-500.0,0.00019726,3]
[347284142,1735656643873,-500.0,0.00019726,3]
[347284143,1735656643884,-232.91,0.00019726,3]
[347284144,1735656643893,-500.0,0.00019726,3]
[347284145,1735656643902,-500.0,0.00019726,3]
[347284146,1735656643911,-664.08,0.00019726,3]
[347284147,1735656643921,-536.23,0.00019726,3]
[347284148,1735656643931,-500.0,0.00019726,3]
[347284149,1735656643942,-553.14,0.00019726,3]
[347284150,1735656643951,-500.0,0.00019726,3]
[347284151,1735656643960,-500.0,0.00019726,3]
[347284152,1735656643970,-8889.7,0.00019726,3]
[347284153,1735656643979,-500.0,0.00019726,3]
[347284154,1735656643989,-500.0,0.00019726,3]
[347284155,1735656643999,-500.0,0.00019726,3]
[347284156,1735656644008,-895.14,0.00019726,3]
[347284157,1735656644017,-500.0,0.00019726,3]
[347284158,1735656644027,-501.72478121,0.00019726,3]
[347284159,1735656644036,-765.06,0.00019726,3]
[347284160,1735656644046,-746.76,0.00019726,3]
[347284161,1735656644055,-500.0,0.00019726,3]
[347284162,1735656644065,-154.04723457,0.00019726,3]
[347284163,1735656644073,-744.78,0.00019726,3]
[347284164,1735656644083,-500.0,0.00019726,3]
[347284165,1735656644093,-699.63,0.00019726,3]
[347284166,1735656644099,-500.0,0.00019726,3]
[347284167,1735656644108,-500.0,0.00019726,3]
[347284168,1735656644118,-284.97569444,0.00019726,3]
[347284169,1735656644129,-569.88,0.00019726,3]
[347284170,1735656644138,-514.01,0.00019726,3]
[347284171,1735656644148,-500.0,0.00019726,3]
[347284172,1735656644158,-500.0,0.00019726,3]
[347284173,1735656644167,-500.0,0.00019726,3]
[347284174,1735656644177,-500.0,0.00019726,3]
[347284175,1735656644189,-500.0,0.00019726,3]
[347284176,1735656644198,-500.0,0.00019726,3]
[347284177,1735656644207,-1235.5,0.00019726,3]
[347284178,1735656644216,-500.0,0.00019726,3]
[347284179,1735656644225,-1264.37,0.00019726,3]
[347284180,1735656644235,-41844.13,0.00019726,3]
[347284181,1735656644244,-500.0,0.00019726,3]
[347284182,1735656644253,-678.84,0.00019726,3]
[347284183,1735656644263,-692.71,0.00019726,3]
[347284184,1735656644272,-1594.83,0.00019726,3]
[347284185,1735656644281,-500.0,0.00019726,3]
[347284186,1735656644291,-4982.53,0.00019726,3]
[347284187,1735656644300,-1591.88,0.00019726,3]
[347284188,1735656644309,-688.88,0.00019726,3]
[347284189,1735656644318,-500.0,0.00019726,3]
[347284190,1735656644328,-500.0,0.00019726,3]
[347284191,1735656644337,-903.03,0.00019726,3]
[347284192,1735656644347,-500.0,0.00019726,3]
[347284193,1735656644357,-500.0,0.00019726,3]
[347284194,1735656644367,-1030.72,0.00019726,3]
[347284195,1735656644375,-500.0,0.00019726,3]
[347284196,1735656644385,-1297.63,0.00019726,3]
[347284197,1735656644394,-500.0,0.00019726,3]
[347284198,1735656644402,-421.49183996,0.00019726,3]
[347284199,1735656644412,-500.0,0.00019726,3]
[347284200,1735656644421,-500.0,0.00019726,3]
[347284202,1735656644430,-163.85838417,0.00019726,3]
[347284204,1735656644444,-500.0,0.00019726,3]
[347284206,1735656644453,-668.09,0.00019726,3]
[347284208,1735656644462,-558.98551685,0.00019726,3]
[347284210,1735656644472,-500.0,0.00019726,3]
[347284212,1735656644484,-500.0,0.00019726,3]
[347284213,1735656644493,-500.0,0.00019726,3]
[347284215,1735656644502,-500.0,0.00019726,3]
[347284217,1735656644511,-569.3,0.00019726,3]
[347284219,1735656644520,-896.72,0.00019726,3]
[347284221,1735656644530,-500.0,0.00019726,3]
[347284223,1735656644539,-592.23,0.00019726,3]
[347284224,1735656644549,-500.0,0.00019726,3]
[347284226,1735656644559,-809.87,0.00019726,3]
[347284228,1735656644568,-330.13828605,0.00019726,3]
[347284230,1735656644578,-500.0,0.00019726,3]
[347284232,1735656644587,-2398.05,0.00019726,3]
[347284233,1735656644596,-500.0,0.00019726,3]
[347284234,1735656644606,-500.0,0.00019726,3]
[347284235,1735656644615,-500.0,0.00019726,3]
[347284236,1735656644625,-153.35675439,0.00019726,3]
[347284237,1735656644635,-500.0,0.00019726,3]
[347284238,1735656644645,-4801.78,0.00019726,3]
[347284239,1735656644655,-500.0,0.00019726,3]
[347284240,1735656644664,-500.0,0.00019726,3]
[347284241,1735656644673,-301.04072164,0.00019726,3]
[347284242,1735656644683,-1324.0,0.00019726,3]
[347284243,1735656644694,-1619.51,0.00019726,3]
[347284244,1735656644703,-500.0,0.00019726,3]
[347284245,1735656644712,-500.0,0.00019726,3]
[347284246,1735656644721,-3153.35,0.00019726,3]
[347284247,1735656644730,-502.5824428,0.00019726,3]
[347284248,1735656644740,-530.08,0.00019726,3]
[347284249,1735656644750,-500.0,0.00019726,3]
[347284250,1735656644759,-838.75,0.00019726,3]
[347284251,1735656644770,-500.0,0.00019726,3]
[347284252,1735656644779,-500.0,0.00019726,3]
[347284253,1735656644789,-1189.17,0.00019726,3]
[347284254,1735656644799,-500.0,0.00019726,3]
[347284255,1735656644809,-500.0,0.00019726,3]
[347284256,1735656644818,-500.0,0.00019726,3]
[347284257,1735656644828,-500.0,0.00019726,3]
[347284258,1735656644837,-1064.12,0.00019726,3]
[347284259,1735656644847,-605.52,0.00019726,3]
[347284260,1735656644856,-1609.04,0.00019726,3]
[347284261,1735656644866,-500.0,0.00019726,3]
[347284262,1735656644877,-500.0,0.00019726,3]
[347284263,1735656644886,-500.0,0.00019726,3]
[347284264,1735656644896,-615.65,0.00019726,3]
[347284265,1735656644905,-500.0,0.00019726,3]
[347284266,1735656644915,-500.0,0.00019726,3]
[347284267,1735656644925,-707.44,0.00019726,3]
[347284268,1735656644936,-500.0,0.00019726,3]
[347284269,1735656644947,-364.9904455,0.00019795,2]
[347284270,1735656644956,-310.716248,0.00019918,2]
[347284271,1735656644966,-428.5290742,0.00019945,2]
[347284272,1735656644975,-307.018901,0.00019945,2]
[347284273,1735656644984,-153.0,0.00019945,2]
[347284274,1735656644994,-153.0,0.00019945,2]
[347284275,1735656645003,-153.0,0.00019945,2]
[347284276,1735656645012,-153.0,0.00019945,2]
[347284277,1735656645022,-153.0,0.00019945,2]
[347284278,1735656645032,-206.1211936,0.00019945,2]
[347284279,1735656645042,-364.9904455,0.00019974,2]
[347284280,1735656645052,-500.0,0.00019976,8]
[347284281,1735656645061,-420.0,0.00019997,2]
[347284283,1735656645070,-5164.75756255,0.0002,3]
[347284284,1735656645079,-4001.36196816,0.0002,2]
[347284285,1735656645088,-9200.12,0.0002,30]
[347284287,1735656645097,-2057.42521001,0.0002,30]
[347284288,1735656645106,-383.947523,0.0002,3]
[347284289,1735656645115,-500.0,0.0002,3]
[347284290,1735656645124,-558.19453967,0.0002,3]
[347284292,1735656645133,-500.0,0.0002,3]
[347284293,1735656645143,-500.0,0.0002,3]
[347284294,1735656645152,-580.08221002,0.0002,3]
[347284296,1735656645161,-568.03,0.0002,3]
[347284298,1735656645171,-500.0,0.0002,3]
[347284300,1735656645180,-500.0,0.0002,3]
[347284302,1735656645191,-579.1458991,0.0002,3]
[347284303,1735656645200,-500.0,0.0002,3]
[347284304,1735656645209,-500.0,0.0002,3]
[347284305,1735656645218,-702.26,0.0002,3]
[347284306,1735656645227,-500.0,0.0002,3]
[347284307,1735656645236,-167.36138381,0.0002,3]
[347284308,1735656645245,-500.0,0.0002,3]
[347284309,1735656645254,-500.0,0.0002,3]
[347284310,1735656645264,-500.0,0.0002,3]
[347284311,1735656645273,-500.0,0.0002,3]
[347284313,1735656645282,-500.0,0.0002,3]
[347284314,1735656645291,-500.0,0.0002,2]
[347284316,1735656645301,-500.0,0.0002,3]
[347284318,1735656645311,-500.0,0.0002,3]
[347284320,1735656645320,-500.0,0.0002,3]
[347284322,1735656645329,-500.0,0.0002,3]
[347284325,1735656645338,-521.92,0.0002,3]
[347284327,1735656645348,-693.55,0.0002,3]
[347284328,1735656645357,-500.0,0.0002,3]
[347284329,1735656645366,-500.0,0.0002,3]
[347284331,1735656645375,-500.0,0.0002,3]
[347284332,1735656645385,-500.0,0.0002,3]
[347284333,1735656645394,-500.0,0.0002,3]
[347284334,1735656645404,-498.22761042,0.0002,3]
[347284335,1735656645413,-500.0,0.0002,3]
[347284336,1735656645422,-500.0,0.0002,3]
[347284337,1735656645431,-1508.73165915,0.0002,2]
[347284338,1735656645441,-718.07,0.0002,3]
[347284339,1735656645452,-501.38835104,0.0002,3]
[347284340,1735656645461,-500.0,0.0002,3]
[347284341,1735656645471,-410.91955904,0.0002,3]
[347284343,1735656645480,-500.0,0.0002,3]
[347284345,1735656645490,-593.65,0.0002,3]
[347284346,1735656645499,-500.0,0.0002,3]
[347284348,1735656645508,-580.67,0.0002,3]
[347284350,1735656645518,-500.0,0.0002,3]
[347284352,1735656645527,-597.25173237,0.0002,3]
[347284354,1735656645536,-500.0,0.0002,3]
[347284356,1735656645545,-2809.83,0.0002,3]
[347284358,1735656645555,-978.88,0.0002,3]
[347284360,1735656645564,-500.0,0.0002,3]
[347284362,1735656645573,-500.0,0.0002,2]
[347284364,1735656645583,-500.0,0.0002,3]
[347284366,1735656645593,-500.0,0.0002,3]
[347284368,1735656645603,-628.94883514,0.0002,3]
[347284370,1735656645612,-500.0,0.0002,3]
[347284371,1735656645621,-500.0,0.0002,3]
[347284373,1735656645630,-1083.07,0.0002,3]
[347284375,1735656645640,-500.0,0.0002,3]
[347284377,1735656645649,-814.01,0.0002,3]
[347284379,1735656645659,-962.0,0.0002,3]
[347284381,1735656645675,-6935.47,0.0002,3]
[347284383,1735656645686,-580.27846853,0.0002,3]
[347284385,1735656645701,-500.0,0.0002,3]
[347284387,1735656645715,-500.0,0.0002,3]
[347284389,1735656645725,-500.0,0.0002,3]
[347284391,1735656645734,-664.08,0.0002,3]
[347284393,1735656645744,-536.23,0.0002,3]
[347284406,1735656645854,-500.0,0.0002,3]
[347284408,1735656645863,-553.14,0.0002,3]
[347284410,1735656645875,-500.0,0.0002,3]
[347284412,1735656645885,-8889.7,0.0002,3]
[347284414,1735656645895,-500.0,0.0002,3]
[347284416,1735656645904,-500.0,0.0002,3]
[347284418,1735656645915,-895.14,0.0002,3]
[347284420,1735656645925,-765.06,0.0002,3]
[347284422,1735656645934,-746.76,0.0002,3]
[347284424,1735656645945,-500.0,0.0002,3]
[347284426,1735656645957,-744.78,0.0002,3]
[347284428,1735656645966,-500.0,0.0002,3]
[347284430,1735656645976,-699.63,0.0002,3]
[347284432,1735656645986,-500.0,0.0002,3]
[347284434,1735656645996,-500.0,0.0002,3]
[347284436,1735656646005,-569.88,0.0002,3]
[347284438,1735656646014,-514.01,0.0002,3]
[347284440,1735656646023,-500.0,0.0002,3]
[347284442,1735656646032,-500.0,0.0002,3]
[347284444,1735656646041,-155.25278133,0.0002,3]
[347284446,1735656646050,-500.0,0.0002,3]
[347284448,1735656646059,-1235.5,0.0002,3]
[347284450,1735656646068,-500.0,0.0002,3]
[347284452,1735656646077,-1264.37,0.0002,3]
[347284454,1735656646087,-41844.13,0.0002,3]
[347284456,1735656646097,-678.84,0.0002,3]
[347284458,1735656646106,-692.71,0.0002,3]
[347284460,1735656646115,-1594.83,0.0002,3]
[347284462,1735656646124,-4982.53,0.0002,3]
[347284464,1735656646134,-1591.88,0.0002,3]
[347284466,1735656646143,-688.88,0.0002,3]
[347284468,1735656646152,-500.0,0.0002,3]
[347284470,1735656646162,-500.0,0.0002,3]
[347284472,1735656646171,-903.03,0.0002,3]
[347284474,1735656646180,-500.0,0.0002,3]
[347284476,1735656646190,-500.0,0.0002,3]
[347284478,1735656646199,-1030.72,0.0002,3]
[347284480,1735656646208,-500.0,0.0002,3]
[347284482,1735656646217,-1297.63,0.0002,3]
[347284484,1735656646227,-500.0,0.0002,3]
[347284486,1735656646237,-500.0,0.0002,3]
[347284488,1735656646245,-500.0,0.0002,3]
[347284490,1735656646259,-668.09,0.0002,3]
[347284492,1735656646269,-500.0,0.0002,3]
[347284494,1735656646278,-500.0,0.0002,3]
[347284496,1735656646287,-500.0,0.0002,3]
[347284498,1735656646296,-569.3,0.0002,3]
[347284500,1735656646305,-896.72,0.0002,3]
[347284502,1735656646315,-500.0,0.0002,3]
[347284505,1735656646324,-592.23,0.0002,3]
[347284506,1735656646333,-500.0,0.0002,3]
[347284509,1735656646343,-809.87,0.0002,3]
[347284511,1735656646352,-500.0,0.0002,3]
[347284513,1735656646361,-2398.05,0.0002,3]
[347284515,1735656646370,-500.0,0.0002,3]
[347284516,1735656646379,-500.0,0.0002,3]
[347284518,1735656646388,-500.0,0.0002,3]
[347284519,1735656646398,-4801.78,0.0002,3]
[347284520,1735656646407,-500.0,0.0002,3]
[347284521,1735656646416,-500.0,0.0002,3]
[347284522,1735656646426,-1324.0,0.0002,3]
[347284523,1735656646435,-1619.51,0.0002,3]
[347284524,1735656646444,-494.91992761,0.0002,3]
[347284525,1735656646454,-500.0,0.0002,3]
[347284526,1735656646463,-3153.35,0.0002,3]
[347284527,1735656646473,-530.08,0.0002,3]
[347284528,1735656646482,-500.0,0.0002,3]
[347284529,1735656646491,-838.75,0.0002,3]
[347284530,1735656646500,-500.0,0.0002,3]
[347284531,1735656646510,-500.0,0.0002,3]
[347284532,1735656646520,-1189.17,0.0002,3]
[347284533,1735656646529,-500.0,0.0002,3]
[347284534,1735656646538,-502.11968351,0.0002,3]
[347284535,1735656646548,-500.0,0.0002,3]
[347284536,1735656646557,-500.0,0.0002,3]
[347284537,1735656646566,-1064.12,0.0002,3]
[347284538,1735656646576,-605.52,0.0002,3]
[347284539,1735656646585,-1609.04,0.0002,3]
[347284540,1735656646594,-500.0,0.0002,3]
[347284541,1735656646603,-500.0,0.0002,3]
[347284542,1735656646612,-536.48578541,0.0002,3]
[347284543,1735656646622,-615.65,0.0002,3]
[347284544,1735656646631,-349.32524595,0.0002,3]
[347284545,1735656646641,-707.44,0.0002,3]
[347284546,1735656646650,-500.0,0.0002,3]
[347284547,1735656646660,-674.91335406,0.00020021,2]
[347284548,1735656646669,-364.9904455,0.00020154,2]
[347284549,1735656646678,-150.0,0.00020273,2]
[347284550,1735656646688,-500.0,0.00020273,3]
[347284551,1735656646698,-500.0,0.00020273,3]
[347284553,1735656646707,-500.0,0.00020273,3]
[347284554,1735656646717,-568.03,0.00020273,3]
[347284555,1735656646726,-500.0,0.00020273,3]
[347284556,1735656646735,-500.0,0.00020273,3]
[347284557,1735656646744,-500.0,0.00020273,3]
[347284559,1735656646754,-500.0,0.00020273,3]
[347284560,1735656646764,-702.26,0.00020273,3]
[347284561,1735656646774,-500.0,0.00020273,3]
[347284562,1735656646784,-500.0,0.00020273,3]
[347284563,1735656646794,-500.0,0.00020273,3]
[347284564,1735656646803,-500.0,0.00020273,3]
[347284565,1735656646812,-500.0,0.00020273,3]
[347284566,1735656646821,-500.0,0.00020273,2]
[347284568,1735656646831,-500.0,0.00020273,3]
[347284570,1735656646840,-500.0,0.00020273,3]
[347284572,1735656646850,-500.0,0.00020273,3]
[347284574,1735656646859,-500.0,0.00020273,3]
[347284575,1735656646868,-521.92,0.00020273,3]
[347284577,1735656646882,-693.55,0.00020273,3]
[347284579,1735656646891,-500.0,0.00020273,3]
[347284581,1735656646900,-500.0,0.00020273,3]
[347284582,1735656646909,-500.0,0.00020273,3]
[347284584,1735656646919,-500.0,0.00020273,3]
[347284586,1735656646928,-500.0,0.00020273,3]
[347284587,1735656646938,-330.7807669,0.00020273,3]
[347284588,1735656646946,-500.0,0.00020273,3]
[347284589,1735656646957,-718.07,0.00020273,3]
[347284590,1735656646966,-500.0,0.00020273,3]
[347284591,1735656646976,-500.0,0.00020273,3]
[347284592,1735656646985,-593.65,0.00020273,3]
[347284594,1735656646995,-500.0,0.00020273,3]
[347284595,1735656647004,-580.67,0.00020273,3]
[347284597,1735656647013,-500.0,0.00020273,3]
[347284599,1735656647022,-2809.83,0.00020273,3]
[347284601,1735656647031,-978.88,0.00020273,3]
[347284603,1735656647040,-500.0,0.00020273,2]
[347284604,1735656647049,-500.0,0.00020273,3]
[347284606,1735656647059,-500.0,0.00020273,3]
[347284607,1735656647068,-500.0,0.00020273,3]
[347284608,1735656647079,-500.0,0.00020273,3]
[347284609,1735656647090,-1083.07,0.00020273,3]
[347284610,1735656647100,-814.01,0.00020273,3]
[347284611,1735656647109,-962.0,0.00020273,3]
[347284612,1735656647118,-6935.47,0.00020273,3]
[347284613,1735656647127,-500.0,0.00020273,3]
[347284614,1735656647136,-200.0,0.00020273,3]
[347284615,1735656647145,-664.08,0.00020273,3]
[347284617,1735656647154,-536.23,0.00020273,3]
[347284619,1735656647163,-500.0,0.00020273,3]
[347284620,1735656647172,-553.14,0.00020273,3]
[347284621,1735656647181,-8889.7,0.00020273,3]
[347284622,1735656647194,-500.0,0.00020273,3]
[347284623,1735656647203,-500.0,0.00020273,3]
[347284624,1735656647212,-895.14,0.00020273,3]
[347284625,1735656647222,-765.06,0.00020273,3]
[347284626,1735656647231,-746.76,0.00020273,3]
[347284627,1735656647240,-500.0,0.00020273,3]
[347284628,1735656647249,-744.78,0.00020273,3]
[347284629,1735656647258,-500.0,0.00020273,3]
[347284630,1735656647269,-699.63,0.00020273,3]
[347284631,1735656647278,-569.88,0.00020273,3]
[347284632,1735656647287,-514.01,0.00020273,3]
[347284633,1735656647297,-500.0,0.00020273,3]
[347284634,1735656647306,-500.0,0.00020273,3]
[347284635,1735656647315,-500.0,0.00020273,3]
[347284636,1735656647324,-1235.5,0.00020273,3]
[347284637,1735656647333,-500.0,0.00020273,3]
[347284638,1735656647342,-1264.37,0.00020273,3]
[347284639,1735656647351,-41844.13,0.00020273,3]
[347284640,1735656647360,-678.84,0.00020273,3]
[347284641,1735656647369,-692.71,0.00020273,3]
[347284642,1735656647379,-1594.83,0.00020273,3]
[347284643,1735656647388,-4982.53,0.00020273,3]
[347284644,1735656647397,-1591.88,0.00020273,3]
[347284645,1735656647407,-688.88,0.00020273,3]
[347284646,1735656647416,-489.85614164,0.00020273,3]
[347284647,1735656647428,-424.06957742,0.00020273,3]
[347284648,1735656647440,-903.03,0.00020273,3]
[347284649,1735656647450,-500.0,0.00020273,3]
[347284650,1735656647460,-1030.72,0.00020273,3]
[347284651,1735656647469,-1297.63,0.00020273,3]
[347284652,1735656647479,-500.0,0.00020273,3]
[347284653,1735656647491,-500.0,0.00020273,3]
[347284654,1735656647500,-668.09,0.00020273,3]
[347284655,1735656647510,-500.0,0.00020273,3]
[347284656,1735656647519,-500.0,0.00020273,3]
[347284657,1735656647528,-569.3,0.00020273,3]
[347284658,1735656647537,-896.72,0.00020273,3]
[347284659,1735656647547,-242.92011662,0.00020273,3]
[347284660,1735656647556,-592.23,0.00020273,3]
[347284661,1735656647565,-500.0,0.00020273,3]
[347284662,1735656647575,-499.0,0.00020273,2]
[347284663,1735656647584,-809.87,0.00020273,3]
[347284664,1735656647593,-500.0,0.00020273,3]
[347284665,1735656647603,-2398.05,0.00020273,3]
[347284666,1735656647612,-500.0,0.00020273,3]
[347284667,1735656647621,-500.0,0.00020273,3]
[347284668,1735656647633,-4801.78,0.00020273,3]
[347284669,1735656647642,-1324.0,0.00020273,3]
[347284670,1735656647651,-1619.51,0.00020273,3]
[347284671,1735656647661,-500.0,0.00020273,3]
[347284672,1735656647670,-3153.35,0.00020273,3]
[347284673,1735656647680,-500.0,0.00020273,3]
[347284674,1735656647693,-530.08,0.00020273,3]
[347284675,1735656647703,-838.75,0.00020273,3]
[347284676,1735656647712,-500.0,0.00020273,3]
[347284677,1735656647722,-1189.17,0.00020273,3]
[347284678,1735656647731,-500.0,0.00020273,3]
[347284679,1735656647740,-500.0,0.00020273,3]
[347284680,1735656647749,-1064.12,0.00020273,3]
[347284681,1735656647758,-605.52,0.00020273,3]
[347284682,1735656647768,-1609.04,0.00020273,3]
[347284683,1735656647777,-461.65655663,0.00020273,3]
[347284684,1735656647787,-500.0,0.00020273,3]
[347284685,1735656647883,-615.65,0.00020273,3]
[347284686,1735656647893,-707.44,0.00020273,3]
[347284687,1735656647902,-500.0,0.00020273,3]
[347284688,1735656647912,-364.9904455,0.00020333,2]
[347284689,1735656647922,-313.059086,0.00020447,2]
[347284690,1735656647932,-4999.99999902,0.000205,2]
[347284691,1735656647946,-364.9904455,0.00020513,2]
[347284692,1735656647956,-217.707144,0.00020521,2]
[347284693,1735656647965,-465.00012759,0.0002054,2]
[347284694,1735656647974,-500.0,0.00020547,3]
[347284695,1735656647983,-500.0,0.00020547,3]
[347284696,1735656647992,-500.0,0.00020547,3]
[347284697,1735656648001,-568.03,0.00020547,3]
[347284698,1735656648010,-500.0,0.00020547,3]
[347284699,1735656648019,-500.0,0.00020547,3]
[347284700,1735656648028,-500.0,0.00020547,3]
[347284701,1735656648038,-500.0,0.00020547,3]
[347284702,1735656648047,-702.26,0.00020547,3]
[347284703,1735656648057,-500.0,0.00020547,3]
[347284704,1735656648067,-500.0,0.00020547,3]
[347284705,1735656648077,-500.0,0.00020547,3]
[347284706,1735656648087,-500.0,0.00020547,3]
[347284707,1735656648096,-500.0,0.00020547,3]
[347284708,1735656648106,-500.0,0.00020547,2]